bitfinex-derivatives/quotes_ETHF0:USTF0_20260102
["timestamp","ask_amount","ask_price","bid_price","bid_amount"]
[1767318649760,1.08564858,3004.1,3002.8,0.9156718]
[1767318649970,1.07167389,3004.0,3002.8,0.9156718]
[1767318650273,1.08564858,3004.1,3002.8,0.9156718]
[1767318650467,1.07157587,3004.0,3002.8,0.9156718]
[1767318650670,1.08564858,3004.1,3002.8,0.9156718]
[1767318650874,1.07157587,3004.0,3002.8,0.9156718]
[1767318651070,1.08564858,3004.1,3002.8,0.9156718]
[1767318651264,1.07157587,3004.0,3002.8,0.9156718]
[1767318651466,1.08564858,3004.1,3002.8,0.9156718]
[1767318651665,1.07149254,3004.0,3002.8,0.9156718]
[1767318651973,1.08564858,3004.1,3002.8,0.9156718]
[1767318652274,1.07149254,3004.0,3002.8,0.9156718]
[1767318652474,1.08564858,3004.1,3002.8,0.9156718]
[1767318652676,1.07142086,3004.0,3002.8,0.9156718]
[1767318652973,1.08564858,3004.1,3002.8,0.9156718]
[1767318653174,1.07160579,3004.0,3002.8,0.9156718]
[1767318653474,1.08564858,3004.1,3002.8,0.9156718]
[1767318653672,1.07154896,3004.0,3002.8,0.9156718]
[1767318653873,1.08564858,3004.1,3002.8,0.9156718]
[1767318654078,1.07153019,3004.0,3002.8,0.9156718]
[1767318654273,1.08564858,3004.1,3002.8,0.9156718]
[1767318654478,1.07148565,3004.0,3002.8,0.9156718]
[1767318654772,1.08564858,3004.1,3002.8,0.9156718]
[1767318654973,1.07148823,3004.0,3002.8,0.9156718]
[1767318655272,1.08564858,3004.1,3002.8,0.9156718]
[1767318655572,1.07145222,3004.0,3002.8,0.9156718]
[1767318655770,1.08564858,3004.1,3002.8,0.9156718]
[1767318655976,1.07145118,3004.0,3002.8,0.9156718]
[1767318656170,0.77522662,3003.9,3002.8,0.14044518]
[1767318656676,0.77522662,3003.9,3002.7,0.0049975]
[1767318657977,0.31042196,3004.1,3002.7,0.0049975]
[1767318658275,0.77522662,3003.9,3002.7,0.0049975]
[1767318661178,0.31042196,3004.1,3002.7,0.0049975]
[1767318661380,1.84663683,3004.0,3002.8,0.77522662]
[1767318661676,0.77522662,3004.0,3002.8,0.77522662]
[1767318661890,0.31042196,3004.1,3002.8,0.77522662]
[1767318662085,0.00235854,3004.1,3002.7,0.14775192]
[1767318662377,0.00235854,3004.1,3003.2,0.77522662]
[1767318665183,0.00235854,3004.1,3003.2,0.91798104]
[1767318668575,0.00235854,3004.1,3003.2,0.14275442]
[1767318670777,1.80010927,3005.2,3004.0,0.77522662]
[1767318670981,1.07090707,3005.1,3004.3,0.0049975]
[1767318671175,0.14695964,3005.3,3004.3,0.0049975]
[1767318671374,1.07054063,3005.2,3004.3,0.0049975]
[1767318671675,1.07054063,3005.1,3004.3,0.0049975]
[1767318671875,0.92218626,3005.3,3004.3,0.0049975]
[1767318672081,0.00353752,3005.1,3004.3,0.00850932]
[1767318672277,0.92572378,3005.1,3004.3,0.00850932]
[1767318672580,0.92572378,3005.1,3003.3,0.91798104]
[1767318672581,0.77522662,3004.7,3003.3,0.91798104]
[1767318673276,0.14695964,3004.8,3003.3,0.91798104]
[1767318673475,0.0049975,3004.4,3003.7,0.0049975]
[1767318674883,0.0049975,3004.4,3003.7,0.78022412]
[1767318675985,0.0049975,3004.4,3003.7,0.0049975]
[1767318695790,0.0049975,3004.4,3003.7,0.14401258]
[1767318695989,0.14753137,3005.1,3003.7,0.14401258]
[1767318696184,1.0691726,3005.0,3003.7,0.14401258]
[1767318696388,0.14653137,3005.1,3003.7,0.14401258]
[1767318696588,1.06926911,3005.0,3003.7,0.14401258]
[1767318696789,0.14653137,3005.1,3003.7,0.14401258]
[1767318697096,1.069269,3005.0,3003.7,0.14401258]
[1767318697285,0.14653137,3005.1,3003.7,0.14401258]
[1767318697487,1.06939701,3005.0,3003.7,0.14401258]
[1767318697689,0.14653137,3005.1,3003.7,0.14401258]
[1767318698095,1.06952191,3005.0,3003.7,0.14401258]
[1767318698396,0.14653137,3005.1,3003.7,0.14401258]
[1767318698694,0.00253752,3005.1,3003.7,0.14401258]
[1767318701300,0.00153752,3005.1,3003.7,0.14401258]
[1767318722332,1.06958049,3005.0,3003.7,0.14401258]
[1767318722635,0.00153752,3005.1,3003.7,0.14401258]
[1767318744547,0.77620711,3005.1,3003.9,0.14662971]
[1767318746649,0.00153752,3005.1,3004.0,0.9212993]
[1767318747147,0.00153752,3005.1,3004.1,0.14662971]
[1767318752756,1.07104894,3005.0,3004.1,0.14662971]
[1767318752951,0.00153752,3005.1,3004.1,0.14662971]
[1767318753156,1.07106267,3005.0,3004.1,0.14662971]
[1767318753349,0.00153752,3005.1,3004.1,0.14662971]
[1767318753550,1.07106201,3005.0,3004.1,0.14662971]
[1767318753854,0.00153752,3005.1,3004.1,0.14662971]
[1767318754055,1.07105695,3005.0,3004.1,0.14662971]
[1767318754242,0.00153752,3005.1,3004.1,0.14662971]
[1767318754447,1.07105992,3005.0,3004.1,0.14662971]
[1767318754650,0.00153752,3005.1,3004.1,0.14662971]
[1767318755160,1.07106271,3005.0,3004.1,0.14662971]
[1767318755455,0.00153752,3005.1,3004.1,0.14662971]
[1767318756048,1.07106009,3005.0,3004.1,0.14662971]
[1767318756246,0.00153752,3005.1,3004.1,0.14662971]
[1767318765666,0.77620711,3005.1,3004.1,0.14662971]
[1767318776973,0.77620711,3005.1,3003.7,0.91349343]
[1767318777270,0.77620711,3005.1,3003.8,0.13382634]
[1767318779579,0.77466959,3004.9,3003.8,0.13382634]
[1767318779771,0.00153752,3005.1,3003.8,0.13382634]
[1767318779968,1.84628933,3005.0,3003.8,0.13382634]
[1767318780269,0.77466959,3005.0,3003.8,0.13382634]
[1767318781779,0.77466959,3005.0,3003.8,0.90849593]
[1767318783176,0.77620711,3005.1,3003.8,0.90849593]
[1767318783367,1.07147284,3005.0,3003.8,0.90849593]
[1767318783573,0.77620711,3005.1,3003.8,0.90849593]
[1767318783774,0.77466959,3004.4,3003.7,0.0049975]
[1767318784074,0.77466959,3004.6,3003.7,0.0049975]
[1767318787685,0.77466959,3004.8,3003.7,0.0049975]
[1767318789874,0.1354742,3004.9,3003.7,0.0049975]
[1767318789875,0.77466959,3004.2,3003.7,0.0049975]
[1767318790081,0.77466959,3004.2,3003.4,0.13382634]
[1767318790379,0.0049975,3004.3,3003.4,0.13382634]
[1767318790991,0.0049975,3004.3,3003.5,0.0049975]
[1767318879061,1.96670927,3005.0,3004.0,0.77492946]
[1767318879263,1.07341943,3004.9,3004.2,0.77492946]
[1767318879475,0.00153752,3005.1,3003.8,0.14649105]
[1767318879476,0.00153752,3005.1,3004.0,0.77492946]
[1767318879675,1.07286272,3005.0,3004.0,0.77492946]
[1767318879877,1.07286272,3004.9,3003.8,0.92142051]
[1767318880076,0.00153752,3005.1,3003.8,0.92142051]
[1767318880278,1.07290427,3005.0,3003.8,0.92142051]
[1767318880581,0.00153752,3005.1,3003.8,0.92142051]
[1767318880879,1.0725778,3005.0,3003.8,0.92142051]
[1767318881079,0.00153752,3005.1,3003.8,0.92142051]
[1767318881285,1.07257782,3005.0,3003.8,0.14649105]
[1767318881489,0.00153752,3005.1,3003.8,0.92142051]
[1767318881779,1.07232337,3005.0,3003.8,0.92142051]
[1767318882079,0.00153752,3005.1,3003.8,0.92142051]
[1767318882280,1.07232473,3005.0,3003.8,0.92142051]
[1767318882482,0.00153752,3005.1,3003.8,0.92142051]
[1767318882682,1.0722244,3005.0,3003.8,0.92142051]
[1767318882876,0.00153752,3005.1,3003.8,0.92142051]
[1767318883077,1.07222451,3005.0,3003.8,0.92142051]
[1767318883269,0.00153752,3005.1,3003.8,0.92142051]
[1767318883473,1.07205727,3005.0,3003.8,0.92142051]
[1767318883672,0.00153752,3005.1,3003.8,0.92142051]
[1767318883984,1.07205727,3005.0,3003.8,0.92142051]
[1767318884174,0.00153752,3005.1,3003.8,0.92142051]
[1767318884480,1.07194473,3005.0,3003.8,0.92142051]
[1767318884783,0.00153752,3005.1,3003.8,0.92142051]
[1767318884980,1.07192159,3005.0,3003.8,0.92142051]
[1767318885181,0.00153752,3005.1,3003.8,0.92142051]
[1767318885380,1.07182134,3005.0,3003.8,0.92142051]
[1767318885584,0.00153752,3005.1,3003.8,0.92142051]
[1767318885779,1.07182134,3005.0,3003.8,0.92142051]
[1767318885978,0.00153752,3005.1,3003.8,0.92142051]
[1767318886276,1.07182133,3005.0,3003.8,0.92142051]
[1767318886476,0.00153752,3005.1,3003.8,0.92142051]
[1767318886679,1.07173678,3005.0,3003.8,0.92142051]
[1767318886979,0.00153752,3005.1,3003.8,0.92142051]
[1767318887178,1.07173804,3005.0,3003.8,0.92142051]
[1767318887378,0.00153752,3005.1,3003.8,0.92142051]
[1767318887582,1.07166554,3005.0,3003.8,0.92142051]
[1767318887785,0.00153752,3005.1,3003.8,0.92142051]
[1767318887986,1.07166554,3005.0,3003.8,0.92142051]
[1767318888186,0.00153752,3005.1,3003.8,0.92142051]
[1767318888382,1.07160629,3005.0,3003.8,0.92142051]
[1767318888582,0.00153752,3005.1,3003.8,0.92142051]
[1767318888783,1.07160698,3005.0,3003.8,0.92142051]
[1767318888983,0.00153752,3005.1,3003.8,0.92142051]
[1767318889188,1.07160716,3005.0,3003.8,0.92142051]
[1767318889390,0.00153752,3005.1,3003.8,0.92142051]
[1767318889687,1.07155889,3005.0,3003.8,0.92142051]
[1767318889890,0.00153752,3005.1,3003.8,0.92142051]
[1767318890093,1.84648863,3005.0,3003.8,0.92142051]
[1767318890281,0.77492946,3005.0,3003.8,0.92142051]
[1767318894592,0.77492946,3005.0,3003.8,0.14649105]
[1767318896188,0.91748023,3004.8,3003.5,0.0049975]
[1767318896385,0.77492946,3004.6,3003.5,0.0049975]
[1767318897189,0.77492946,3004.2,3003.5,0.0049975]
[1767318897491,0.77492946,3004.4,3003.5,0.0049975]
[1767318900292,0.77492946,3004.2,3002.9,0.14692063]
[1767318900593,0.77492946,3004.2,3003.0,0.14692063]
[1767318900787,0.91748023,3004.4,3003.0,0.14692063]
[1767318900992,2.57503873,3005.0,3003.2,0.14692063]
[1767318900993,0.77492946,3004.5,3003.2,0.14692063]
[1767318901389,0.0049975,3004.2,3003.5,0.0049975]
[1767318902992,0.77492946,3004.1,3003.5,0.0049975]
[1767318903194,0.77492946,3004.1,3003.2,0.00260211]
[1767318904192,0.77492946,3004.1,3003.3,0.0049975]
[1767318904995,0.77492946,3004.1,3003.2,0.00260211]
[1767318905695,0.77492946,3003.9,3002.8,0.07117]
[1767318905899,0.77492946,3003.9,3003.0,0.0049975]
[1767318906592,0.77492946,3003.9,3003.0,0.00847602]
[1767318909001,0.77492946,3003.7,3003.0,0.00847602]
[1767318911305,0.14255077,3004.0,3003.0,0.00847602]
[1767318911606,0.77492946,3003.8,3003.0,0.00847602]
[1767318912112,0.91748023,3003.8,3003.0,0.00847602]
[1767318922227,0.77492946,3003.6,3003.0,0.00847602]
[1767318922927,0.77492946,3003.6,3002.8,0.07117]
[1767318923928,0.77492946,3003.6,3002.9,0.0049975]
[1767318924432,0.91748023,3003.8,3002.9,0.0049975]
[1767318926835,0.77492946,3003.6,3002.9,0.0049975]
[1767318927040,0.77492946,3003.4,3002.3,0.14692063]
[1767318927925,0.77492946,3003.4,3002.5,0.0049975]
[1767318928538,0.14255077,3003.8,3002.5,0.0049975]
[1767318932338,1.21284482,3003.7,3002.5,0.0049975]
[1767318932538,0.14029208,3003.7,3002.5,0.0049975]
[1767318937639,0.94220364,3003.9,3002.5,0.0049975]
[1767318937640,0.14029208,3003.5,3002.5,0.0049975]
[1767318945639,1.23808985,3003.4,3001.8,0.14529816]
[1767318945844,0.16669,3003.4,3001.8,0.14529816]
[1767318946638,0.16669,3003.4,3002.3,0.00333168]
[1767318955553,1.07123877,3003.3,3002.3,0.00333168]
[1767318955744,0.16669,3003.4,3002.3,0.00333168]
[1767318955944,1.0712501,3003.3,3002.3,0.00333168]
[1767318956144,0.16669,3003.4,3002.3,0.00333168]
[1767318956348,1.07132947,3003.3,3002.3,0.00333168]
[1767318956549,0.16669,3003.4,3002.3,0.00333168]
[1767318956749,1.0713295,3003.3,3002.3,0.00333168]
[1767318956950,0.16669,3003.4,3002.3,0.00333168]
[1767318957254,1.07132779,3003.3,3002.3,0.00333168]
[1767318957453,0.16669,3003.4,3002.3,0.00333168]
[1767318957654,1.07133725,3003.3,3002.3,0.00333168]
[1767318957856,0.16669,3003.4,3002.3,0.00333168]
[1767318958057,1.07133725,3003.3,3002.3,0.00333168]
[1767318958356,0.16669,3003.4,3002.3,0.00333168]
[1767318958554,1.07134144,3003.3,3002.3,0.00333168]
[1767318958854,0.16669,3003.4,3002.3,0.00333168]
[1767318959056,1.07134085,3003.3,3002.3,0.00333168]
[1767318959255,0.16669,3003.4,3002.3,0.00333168]
[1767318959456,1.07135692,3003.3,3002.3,0.00333168]
[1767318959658,0.16669,3003.4,3002.3,0.00333168]
[1767318959853,1.07135692,3003.3,3002.3,0.00333168]
[1767318960153,0.16669,3003.4,3002.3,0.00333168]
[1767318960355,1.07137922,3003.3,3002.3,0.00333168]
[1767318960654,0.16669,3003.4,3002.3,0.00333168]
[1767318960853,1.07138042,3003.3,3002.3,0.00333168]
[1767318961154,0.16669,3003.4,3002.3,0.00333168]
[1767318961353,1.07141563,3003.3,3002.3,0.00333168]
[1767318961553,0.16669,3003.4,3002.3,0.00333168]
[1767318961755,1.07141672,3003.3,3002.3,0.00333168]
[1767318961959,0.16669,3003.4,3002.3,0.00333168]
[1767318962257,1.0714166,3003.3,3002.3,0.00333168]
[1767318962453,0.16669,3003.4,3002.3,0.00333168]
[1767318962756,1.07146433,3003.3,3002.3,0.00333168]
[1767318962953,0.16669,3003.4,3002.3,0.00333168]
[1767318963254,1.07146424,3003.3,3002.3,0.00333168]
[1767318963455,0.16669,3003.4,3002.3,0.00333168]
[1767318963655,1.0715269,3003.3,3002.3,0.00333168]
[1767318963955,0.16669,3003.4,3002.3,0.00333168]
[1767318964157,1.07153796,3003.3,3002.3,0.00333168]
[1767318964350,0.16669,3003.4,3002.3,0.00333168]
[1767318964553,1.07160438,3003.3,3002.3,0.00333168]
[1767318964756,0.16669,3003.4,3002.3,0.00333168]
[1767318965058,1.07160439,3003.3,3002.3,0.00333168]
[1767318965257,0.16669,3003.4,3002.3,0.00333168]
[1767318965557,1.07170622,3003.3,3002.3,0.00333168]
[1767318965857,0.16669,3003.4,3002.3,0.00333168]
[1767318966157,1.07170622,3003.3,3002.3,0.00333168]
[1767318966353,0.14029208,3003.7,3002.3,0.00333168]
[1767318966560,1.07189629,3003.6,3002.3,0.14748792]
[1767318966757,0.14029208,3003.7,3002.3,0.14748792]
[1767318971257,0.16666,3004.0,3002.3,0.14748792]
[1767318971458,0.16666,3004.0,3002.6,0.14415624]
[1767318973455,0.0049975,3004.2,3002.6,0.14415624]
[1767318976366,0.0049975,3004.2,3002.9,0.91969988]
[1767318977061,0.0049975,3004.2,3003.0,0.14415624]
[1767318983260,0.14536475,3004.2,3002.5,0.14415624]
[1767318988568,0.92055344,3004.2,3002.8,0.77518869]
[1767318993080,0.92055344,3004.2,3002.8,0.91466883]
[1767318993975,0.92055344,3004.2,3003.0,0.77518869]
[1767318993976,0.0049975,3004.2,3003.0,0.77518869]
[1767318994178,0.0049975,3004.2,3003.2,0.77518869]
[1767319006789,0.0049975,3004.2,3003.2,0.91466883]
[1767319008283,0.0049975,3004.2,3003.3,0.13948014]
[1767319021197,0.77518869,3004.1,3002.5,0.14425308]
[1767319021494,0.77518869,3004.1,3002.8,0.14425308]
[1767319022004,0.0049975,3004.2,3002.9,0.91944177]
[1767319031200,0.0049975,3004.2,3003.0,0.14425308]
[1767319036809,0.0049975,3004.2,3003.1,0.91944177]
[1767319038808,0.0049975,3004.2,3003.2,0.14425308]
[1767319048322,0.0049975,3004.2,3003.4,0.1372847]
[1767319048622,7.22914069,3005.1,3003.9,0.77518869]
[1767319048827,1.07326556,3005.0,3003.9,0.77518869]
[1767319049122,0.16812752,3005.1,3004.0,0.1372847]
[1767319049123,1.07326556,3004.9,3004.0,0.1372847]
[1767319049327,0.16812752,3005.1,3004.0,0.14085432]
[1767319049516,0.0049975,3004.9,3004.2,0.0049975]
[1767319062634,0.14890654,3004.9,3003.2,0.1372847]
[1767319062837,0.31052904,3004.7,3003.2,0.1372847]
[1767319063031,1.07023338,3004.6,3003.2,0.1372847]
[1767319063235,0.16662,3004.7,3003.2,0.1372847]
[1767319063638,1.0701869,3004.6,3003.6,0.00333168]
[1767319063933,0.16662,3004.7,3003.6,0.00333168]
[1767319064133,1.07018799,3004.6,3003.6,0.00333168]
[1767319064333,0.16662,3004.7,3003.6,0.00333168]
[1767319064334,0.16662,3004.7,3003.6,0.14061638]
[1767319064526,1.0702169,3004.6,3003.6,0.14061638]
[1767319064725,0.16662,3004.7,3003.6,0.14061638]
[1767319064922,1.07021724,3004.6,3003.6,0.14061638]
[1767319065126,0.16662,3004.7,3003.6,0.14061638]
[1767319065327,1.07021723,3004.6,3003.6,0.14061638]
[1767319065537,0.16662,3004.7,3003.6,0.14061638]
[1767319065741,1.07024709,3004.6,3003.6,0.14061638]
[1767319065936,0.16662,3004.7,3003.6,0.14061638]
[1767319066138,1.0702458,3004.6,3003.6,0.14061638]
[1767319066435,0.16662,3004.7,3003.6,0.14061638]
[1767319066637,1.07027505,3004.6,3003.6,0.14061638]
[1767319066935,0.16662,3004.7,3003.6,0.14061638]
[1767319067136,1.07027509,3004.6,3003.6,0.14061638]
[1767319067336,0.16662,3004.7,3003.6,0.00333168]
[1767319067534,1.07030496,3004.6,3003.6,0.00333168]
[1767319067734,0.16662,3004.7,3003.6,0.00333168]
[1767319067934,1.07030494,3004.6,3003.6,0.00333168]
[1767319068129,0.16662,3004.7,3003.6,0.00333168]
[1767319068330,1.07030496,3004.6,3003.6,0.00333168]
[1767319068529,0.16662,3004.7,3003.6,0.00333168]
[1767319068734,1.07034104,3004.6,3003.6,0.00333168]
[1767319069040,0.31052904,3004.7,3003.6,0.00333168]
[1767319069244,1.23691888,3004.6,3003.6,0.00333168]
[1767319069434,1.38084462,3004.5,3003.6,0.00333168]
[1767319069632,0.31053904,3004.5,3003.6,0.00333168]
[1767319078347,0.16663,3004.5,3003.6,0.00333168]
[1767319086350,0.16663,3004.5,3003.2,0.00408906]
[1767319088349,1.07129748,3004.4,3003.2,0.00408906]
[1767319088550,0.16663,3004.5,3003.2,0.00408906]
[1767319088846,1.07129748,3004.4,3003.2,0.00408906]
[1767319089043,0.16663,3004.5,3003.2,0.00408906]
[1767319089247,1.07132325,3004.4,3003.2,0.00408906]
[1767319089447,0.16663,3004.5,3003.2,0.00408906]
[1767319089752,1.07153491,3004.4,3003.2,0.00408906]
[1767319089950,0.16663,3004.5,3003.2,0.00408906]
[1767319090250,1.0715364,3004.4,3003.2,0.00408906]
[1767319090453,0.16663,3004.5,3003.2,0.00408906]
[1767319090652,1.07181047,3004.4,3003.2,0.00408906]
[1767319090848,0.16663,3004.5,3003.2,0.00408906]
[1767319091157,1.0718105,3004.4,3003.2,0.00408906]
[1767319091344,0.16663,3004.5,3003.2,0.00408906]
[1767319091543,1.07217973,3004.4,3003.2,0.00408906]
[1767319091853,0.16663,3004.5,3003.2,0.00408906]
[1767319092036,1.0721851,3004.4,3003.2,0.00408906]
[1767319092239,0.16663,3004.5,3003.2,0.00408906]
[1767319092456,1.07241207,3004.4,3003.2,0.00408906]
[1767319092643,1.07241207,3004.3,3003.2,0.00408906]
[1767319092844,0.16663,3004.5,3003.2,0.00408906]
[1767319093045,1.07241212,3004.4,3003.2,0.00408906]
[1767319093345,1.07241212,3004.3,3003.2,0.00408906]
[1767319093545,0.16663,3004.5,3003.2,0.00408906]
[1767319093743,1.07241252,3004.4,3003.2,0.00408906]
[1767319093948,1.07241252,3004.3,3003.2,0.00408906]
[1767319094242,0.16663,3004.5,3003.2,0.00408906]
[1767319094441,1.07242792,3004.4,3003.2,0.00408906]
[1767319094638,1.07242792,3004.3,3003.2,0.00408906]
[1767319094852,0.16663,3004.5,3003.2,0.00408906]
[1767319095052,1.07242797,3004.4,3003.2,0.00408906]
[1767319095242,0.16663,3004.5,3003.2,0.00408906]
[1767319095243,1.07242797,3004.3,3003.2,0.00408906]
[1767319095443,0.16663,3004.5,3003.2,0.00408906]
[1767319095639,1.07243136,3004.4,3003.2,0.00408906]
[1767319095845,1.07243136,3004.3,3003.2,0.00408906]
[1767319096053,0.16663,3004.5,3003.2,0.00408906]
[1767319096351,1.07243813,3004.4,3003.2,0.00408906]
[1767319096551,1.07243813,3004.3,3003.2,0.00408906]
[1767319096739,0.16663,3004.5,3003.2,0.00408906]
[1767319096943,1.07245555,3004.4,3003.2,0.00408906]
[1767319097151,1.07245555,3004.3,3003.2,0.00408906]
[1767319097343,0.16663,3004.5,3003.2,0.00408906]
[1767319097543,1.07250458,3004.4,3003.2,0.00408906]
[1767319097750,1.07250458,3004.3,3003.2,0.00408906]
[1767319098056,0.16663,3004.5,3003.2,0.00408906]
[1767319098254,1.07251118,3004.4,3003.2,0.00408906]
[1767319098553,1.07251118,3004.3,3003.2,0.00408906]
[1767319098853,0.30324999,3004.5,3003.2,0.00408906]
[1767319099053,1.07253895,3004.4,3003.2,0.00408906]
[1767319099253,1.07253895,3004.3,3003.2,0.00408906]
[1767319099457,0.30324999,3004.5,3003.2,0.00408906]
[1767319099659,1.07253474,3004.4,3003.2,0.00408906]
[1767319099955,1.07253474,3004.3,3003.2,0.00408906]
[1767319100148,0.30324999,3004.5,3003.2,0.00408906]
[1767319100349,1.07254185,3004.4,3003.2,0.00408906]
[1767319100548,1.07254185,3004.3,3003.2,0.00408906]
[1767319100760,0.30324999,3004.5,3003.2,0.00408906]
[1767319100949,1.07253515,3004.4,3003.2,0.00408906]
[1767319101148,1.07253515,3004.3,3003.2,0.00408906]
[1767319101353,0.30324999,3004.5,3003.2,0.00408906]
[1767319101552,1.07253567,3004.4,3003.2,0.00408906]
[1767319101753,1.07253567,3004.3,3003.2,0.00408906]
[1767319101955,0.30324999,3004.5,3003.2,0.00408906]
[1767319102157,1.07254833,3004.4,3003.2,0.00408906]
[1767319102355,1.07254833,3004.3,3003.2,0.00408906]
[1767319102556,0.30324999,3004.5,3003.2,0.00408906]
[1767319102861,1.07256454,3004.4,3003.2,0.00408906]
[1767319103156,1.07256454,3004.3,3003.2,0.00408906]
[1767319103348,0.30324999,3004.5,3003.2,0.00408906]
[1767319103549,1.07255946,3004.4,3003.2,0.00408906]
[1767319103750,1.07255946,3004.3,3003.2,0.00408906]
[1767319103957,0.30324999,3004.5,3003.2,0.00408906]
[1767319104255,1.0725761,3004.4,3003.2,0.00408906]
[1767319104443,1.0725761,3004.3,3003.2,0.00408906]
[1767319104644,0.30324999,3004.5,3003.2,0.00408906]
[1767319104848,1.07257457,3004.4,3003.2,0.00408906]
[1767319105044,1.07257457,3004.3,3003.2,0.00408906]
[1767319105246,0.30324999,3004.5,3003.2,0.00408906]
[1767319105457,1.07257273,3004.4,3003.2,0.00408906]
[1767319105654,1.07257273,3004.3,3003.2,0.00408906]
[1767319105957,0.30324999,3004.5,3003.2,0.00408906]
[1767319106161,1.07257102,3004.4,3003.2,0.00408906]
[1767319106459,1.07257102,3004.3,3003.2,0.00408906]
[1767319106760,0.30324999,3004.5,3003.2,0.00408906]
[1767319107059,1.07253261,3004.4,3003.2,0.00408906]
[1767319107260,1.07253261,3004.3,3003.2,0.00408906]
[1767319107460,0.30324999,3004.5,3003.2,0.00408906]
[1767319107654,1.07254198,3004.4,3003.2,0.00408906]
[1767319107855,1.07254198,3004.3,3003.2,0.00408906]
[1767319108057,0.30324999,3004.5,3003.2,0.00408906]
[1767319108267,1.07254899,3004.4,3003.2,0.00408906]
[1767319108463,1.07254899,3004.3,3003.2,0.00408906]
[1767319108762,0.30324999,3004.5,3003.2,0.00408906]
[1767319108963,1.07253549,3004.4,3003.2,0.00408906]
[1767319109161,1.07253549,3004.3,3003.2,0.00408906]
[1767319109362,0.30324999,3004.5,3003.2,0.00408906]
[1767319109563,1.07253496,3004.4,3003.2,0.00408906]
[1767319109762,1.07253496,3004.3,3003.2,0.00408906]
[1767319109965,0.30324999,3004.5,3003.2,0.00408906]
[1767319110264,1.07253496,3004.4,3003.2,0.00408906]
[1767319110458,1.07253496,3004.3,3003.2,0.00408906]
[1767319110659,0.30324999,3004.5,3003.2,0.00408906]
[1767319110863,1.07254579,3004.4,3003.2,0.00408906]
[1767319111066,1.07254579,3004.3,3003.2,0.00408906]
[1767319111260,0.30324999,3004.5,3003.2,0.00408906]
[1767319111460,1.07254521,3004.4,3003.2,0.00408906]
[1767319111661,1.07254521,3004.3,3003.2,0.00408906]
[1767319111862,0.30324999,3004.5,3003.2,0.00408906]
[1767319112060,1.0725454,3004.4,3003.2,0.00408906]
[1767319112260,1.0725454,3004.3,3003.2,0.00408906]
[1767319112459,1.07829307,3004.5,3003.2,0.00408906]
[1767319112660,1.07254147,3004.4,3003.2,0.00408906]
[1767319112862,1.07254147,3004.3,3003.2,0.00408906]
[1767319113169,1.07829307,3004.5,3003.2,0.00408906]
[1767319113368,1.07254242,3004.4,3003.2,0.00408906]
[1767319113561,1.07254242,3004.3,3003.2,0.00408906]
[1767319113760,1.07829307,3004.5,3003.2,0.00408906]
[1767319113970,1.07253487,3004.4,3003.2,0.00408906]
[1767319114269,1.07253487,3004.3,3003.2,0.00408906]
[1767319114468,1.07829307,3004.5,3003.2,0.00408906]
[1767319114670,1.07253124,3004.4,3003.2,0.00408906]
[1767319114871,1.07253124,3004.3,3003.2,0.00408906]
[1767319115170,1.07829307,3004.5,3003.2,0.00408906]
[1767319115371,1.07253693,3004.4,3003.2,0.00408906]
[1767319115562,1.07253693,3004.3,3003.2,0.00408906]
[1767319115863,1.07829307,3004.5,3003.2,0.00408906]
[1767319116062,1.20997403,3004.4,3003.2,0.00408906]
[1767319116263,1.07253689,3004.3,3003.2,0.00408906]
[1767319133591,0.90788972,3004.2,3003.2,0.00408906]
[1767319164320,0.13284664,3004.2,3003.2,0.00408906]
[1767319181930,0.13284664,3004.2,3002.3,0.13975393]
[1767319182134,0.14013188,3004.0,3002.3,0.13975393]
[1767319182932,0.14013188,3004.0,3002.3,0.14208649]
[1767319187347,0.14013188,3004.0,3002.5,0.91486024]
[1767319187536,0.14013188,3004.0,3002.6,0.13975393]
[1767319188735,0.39584969,3004.3,3002.6,0.13975393]
[1767319188940,1.07427855,3004.2,3002.6,0.13975393]
[1767319189136,0.39584969,3004.3,3002.6,0.13975393]
[1767319189342,1.07433022,3004.2,3002.6,0.13975393]
[1767319189544,0.39584969,3004.3,3002.6,0.13975393]
[1767319189844,1.0743293,3004.2,3002.6,0.13975393]
[1767319190039,0.39584969,3004.3,3002.6,0.13975393]
[1767319190238,1.07434642,3004.2,3002.6,0.13975393]
[1767319190441,0.39584969,3004.3,3002.6,0.13975393]
[1767319190648,1.07435249,3004.2,3002.6,0.13975393]
[1767319190850,0.39584969,3004.3,3002.6,0.13975393]
[1767319191046,1.07433744,3004.2,3002.6,0.13975393]
[1767319191248,0.14013188,3004.4,3002.6,0.13975393]
[1767319191543,1.07433973,3004.3,3002.6,0.13975393]
[1767319191738,1.07433973,3004.2,3002.6,0.13975393]
[1767319191944,0.14013188,3004.4,3002.6,0.13975393]
[1767319192143,1.07433356,3004.3,3002.6,0.13975393]
[1767319192345,1.07433356,3004.2,3002.6,0.13975393]
[1767319192639,0.14013188,3004.4,3002.6,0.13975393]
[1767319192842,1.21447019,3004.3,3002.6,0.13975393]
[1767319193042,1.07433831,3004.2,3002.6,0.13975393]
[1767319193239,0.14013188,3004.3,3002.6,0.13975393]
[1767319193443,1.07434652,3004.2,3002.6,0.13975393]
[1767319193645,0.14013188,3004.3,3002.6,0.13975393]
[1767319193843,1.07434814,3004.2,3002.6,0.13975393]
[1767319194044,0.14013188,3004.3,3002.6,0.13975393]
[1767319194241,1.20946895,3004.2,3002.6,0.13975393]
[1767319194449,0.13512081,3004.2,3002.6,0.13975393]
[1767319201953,0.13512081,3004.0,3002.3,0.00233256]
[1767319202152,0.13512081,3003.8,3002.3,0.00233256]
[1767319202457,0.0049975,3003.4,3002.3,0.00233256]
[1767319203350,0.0049975,3003.4,3002.3,0.13570632]
[1767319204152,0.0049975,3003.4,3002.3,0.91081263]
[1767319205655,0.0049975,3003.4,3002.4,0.13337376]
[1767319208652,0.0049975,3003.4,3002.3,0.00233256]
[1767319232483,0.0049975,3003.4,3002.6,0.77535196]
[1767319235479,0.0049975,3003.4,3002.8,0.77535196]
[1767319242796,0.16665,3004.0,3002.6,0.13753429]
[1767319242797,0.16665,3004.0,3003.2,0.77535196]
[1767319242996,1.0815655,3003.9,3003.2,0.77535196]
[1767319243295,0.16665,3004.0,3003.2,0.77535196]
[1767319243482,1.08136616,3003.9,3003.2,0.77535196]
[1767319243682,0.0049975,3003.9,3003.2,0.78034946]
[1767319248987,0.54124416,3004.4,3003.4,0.77535196]
[1767319249192,1.0800101,3004.3,3003.4,0.77535196]
[1767319249393,1.0800101,3004.2,3003.4,0.77535196]
[1767319249697,0.54124416,3004.4,3003.4,0.77535196]
[1767319249897,1.07985873,3004.3,3003.4,0.77535196]
[1767319250194,1.08485623,3004.2,3003.4,0.77535196]
[1767319250393,0.0049975,3004.2,3003.4,0.77535196]
[1767319252598,0.0049975,3004.2,3003.2,0.14253179]
[1767319252797,0.0049975,3004.2,3003.2,0.0049975]
[1767319256805,0.14465471,3004.2,3003.2,0.0049975]
[1767319259209,0.92000667,3004.2,3003.2,0.0049975]
[1767319265107,1.07921468,3004.1,3003.2,0.0049975]
[1767319265307,0.92000667,3004.2,3003.2,0.0049975]